fUSD/lending_fUSD_20250622
["ID","MTS","AMOUNT","RATE_DAILY","PERIOD"]
[367012006,1750618010725,-528.3,0.00041643,120]
[367012007,1750618010757,-1137.65,0.00041643,120]
[367012008,1750618010788,-1119.85,0.00041643,120]
[367012009,1750618010820,-2335.52,0.00041643,120]
[367012010,1750618010851,-1341.51,0.00041643,120]
[367012011,1750618010883,-1716.3,0.00041643,120]
[367012012,1750618010913,-895.27,0.00041643,120]
[367012013,1750618010944,-1169.86,0.00041643,120]
[367012014,1750618010974,-988.98,0.00041643,120]
[367012015,1750618011003,-682.99,0.00041643,120]
[367012016,1750618011032,-585.98,0.00041643,120]
[367012017,1750618011063,-589.49,0.00041643,120]
[367012018,1750618011092,-1012.9,0.00041643,120]
[367012019,1750618011122,-1264.04,0.00041643,120]
[367012020,1750618011152,-558.09,0.00041643,120]
[367012021,1750618011182,-677.01,0.00041643,120]
[367012022,1750618011212,-986.8,0.00041643,120]
[367012023,1750618011242,-1079.64,0.00041643,120]
[367012024,1750618011272,-1159.54,0.00041643,120]
[367012025,1750618011305,-1154.07,0.00041643,120]
[367012026,1750618011337,-1056.77,0.00041643,120]
[367012027,1750618011368,-1558.15,0.00041643,120]
[367012028,1750618011402,-1633.93,0.00041643,120]
[367012029,1750618011436,-1212.28,0.00041643,120]
[367012030,1750618011470,-615.3,0.00041643,120]
[367012031,1750618011502,-2115.05,0.00041643,120]
[367012032,1750618011534,-632.61,0.00041643,120]
[367012033,1750618011566,-1267.3,0.00041643,120]
[367012034,1750618011597,-2328.65,0.00041643,120]
[367012035,1750618011630,-1887.27,0.00041643,120]
[367012036,1750618011661,-1520.57,0.00041643,120]
[367012037,1750618011692,-857.73,0.00041643,120]
[367012038,1750618011725,-1699.21,0.00041643,120]
[367012039,1750618011756,-1408.55,0.00041643,120]
[367012040,1750618011788,-778.68,0.00041643,120]
[367012041,1750618011820,-822.31,0.00041643,120]
[367012042,1750618011851,-862.05,0.00041643,120]
[367012043,1750618011882,-2514.86,0.00041643,120]
[367012044,1750618011913,-884.45,0.00041643,120]
[367012045,1750618011944,-1444.46,0.00041643,120]
[367012046,1750618011974,-1704.3,0.00041643,120]
[367012047,1750618012003,-829.79,0.00041643,120]
[367012048,1750618012382,-2129.87,0.00041643,120]
[367012049,1750618012415,-974.21,0.00041643,120]
[367012050,1750618012446,-3418.77,0.00041643,120]
[367012051,1750618012478,-490.0,0.00041643,120]
[367012052,1750618012509,-906.17,0.00041643,120]
[367012053,1750618012540,-2036.74,0.00041643,120]
[367012054,1750618012572,-3365.95,0.00041643,120]
[367012055,1750618012603,-493.31,0.00041643,120]
[367012056,1750618012634,-1089.22,0.00041643,120]
[367012057,1750618012664,-2433.96,0.00041643,120]
[367012058,1750618012695,-2885.12,0.00041643,120]
[367012059,1750618012726,-537.79,0.00041643,120]
[367012060,1750618012757,-975.12,0.00041643,120]
[367012061,1750618012788,-1462.28,0.00041643,120]
[367012062,1750618012819,-2797.07,0.00041643,120]
[367012063,1750618012851,-1316.22,0.00041643,120]
[367012064,1750618012881,-724.65,0.00041643,120]
[367012065,1750618012911,-985.11,0.00041643,120]
[367012066,1750618012941,-1585.07,0.00041643,120]
[367012067,1750618012972,-610.42,0.00041643,120]
[367012068,1750618013003,-913.26,0.00041643,120]
[367012069,1750618013032,-716.27,0.00041643,120]
[367012070,1750618013063,-2471.36,0.00041643,120]
[367012071,1750618013092,-1139.15,0.00041643,120]
[367012072,1750618013121,-1896.7,0.00041643,120]
[367012073,1750618013152,-2772.64,0.00041643,120]
[367012074,1750618013182,-3136.28,0.00041643,120]
[367012075,1750618013211,-1370.08,0.00041643,120]
[367012076,1750618013239,-1569.59,0.00041643,120]
[367012077,1750618013267,-1255.58,0.00041643,120]
[367012078,1750618013297,-2414.63,0.00041643,120]
[367012079,1750618013326,-1655.6,0.00041643,120]
[367012080,1750618013354,-1997.35,0.00041643,120]
[367012081,1750618013382,-1067.24,0.00041643,120]
[367012082,1750618013411,-561.3,0.00041643,120]
[367012083,1750618013440,-742.8,0.00041643,120]
[367012084,1750618013469,-660.73,0.00041643,120]
[367012085,1750618013499,-591.94,0.00041643,120]
[367012086,1750618013531,-962.19,0.00041643,120]
[367012087,1750618013564,-490.0,0.00041643,120]
[367012088,1750618013594,-633.18,0.00041643,120]
[367012089,1750618013626,-735.31,0.00041643,120]
[367012090,1750618013659,-1201.37,0.00041643,120]
[367012091,1750618013691,-812.18,0.00041643,120]
[367012092,1750618013723,-2268.08,0.00041643,120]
[367012093,1750618013755,-693.63,0.00041643,120]
[367012094,1750618013786,-546.21,0.00041643,120]
[367012095,1750618013818,-537.6,0.00041643,120]
[367012096,1750618013849,-2017.34,0.00041643,120]
[367012097,1750618013880,-681.23,0.00041643,120]
[367012098,1750618013910,-1033.09,0.00041643,120]
[367012099,1750618013940,-2395.42,0.00041643,120]
[367012100,1750618013970,-1957.08,0.00041643,120]
[367012101,1750618014000,-2331.73,0.00041643,120]
[367012102,1750618014030,-758.38,0.00041643,120]
[367012103,1750618014060,-1317.03,0.00041643,120]
[367012104,1750618014089,-656.12,0.00041643,120]
[367012105,1750618014118,-2192.5,0.00041643,120]
[367012106,1750618014147,-1552.82,0.00041643,120]
[367012107,1750618014176,-923.16,0.00041643,120]
[367012108,1750618014205,-690.54,0.00041643,120]
[367012109,1750618014234,-2557.79,0.00041643,120]
[367012110,1750618014263,-1278.51,0.00041643,120]
[367012111,1750618014292,-882.36,0.00041643,120]
[367012112,1750618014321,-2592.87,0.00041643,120]
[367012113,1750618014351,-1777.46,0.00041643,120]
[367012114,1750618014379,-2455.25,0.00041643,120]
[367012115,1750618014407,-2666.61,0.00041643,120]
[367012116,1750618014435,-684.45,0.00041643,120]
[367012117,1750618014465,-1987.58,0.00041643,120]
[367012118,1750618014494,-1090.39,0.00041643,120]
[367012119,1750618014527,-1011.01,0.00041643,120]
[367012120,1750618014650,-959.79,0.00041643,120]
[367012121,1750618014683,-1971.77,0.00041643,120]
[367012122,1750618014714,-559.39,0.00041643,120]
[367012123,1750618014746,-3560.68,0.00041643,120]
[367012124,1750618014776,-778.14,0.00041643,120]
[367012125,1750618014806,-1951.19,0.00041643,120]
[367012126,1750618014835,-517.24,0.00041643,120]
[367012127,1750618014865,-568.31,0.00041643,120]
[367012128,1750618014894,-958.05,0.00041643,120]
[367012129,1750618014923,-849.45,0.00041643,120]
[367012130,1750618014954,-496.29,0.00041643,120]
[367012131,1750618014987,-440.86,0.00041643,120]
[367012132,1750618015018,-1399.22,0.00041643,120]
[367012133,1750618015050,-1076.93,0.00041643,120]
[367012134,1750618015079,-2066.0,0.00041643,120]
[367012135,1750618015111,-1949.7,0.00041643,120]
[367012136,1750618015141,-2457.71,0.00041643,120]
[367012137,1750618015172,-1706.53,0.00041643,120]
[367012138,1750618015202,-1601.48,0.00041643,120]
[367012139,1750618015230,-2307.89,0.00041643,120]
[367012140,1750618015259,-1118.09,0.00041643,120]
[367012141,1750618015289,-1746.71,0.00041643,120]
[367012142,1750618015319,-1923.45,0.00041643,120]
[367012143,1750618015350,-1348.09,0.00041643,120]
[367012144,1750618015380,-752.15,0.00041643,120]
[367012145,1750618015408,-1794.71,0.00041643,120]
[367012146,1750618015438,-512.65,0.00041643,120]
[367012147,1750618015471,-5010.1,0.00041643,120]
[367012148,1750618015502,-809.54,0.00041643,120]
[367012149,1750618015535,-898.63,0.00041643,120]
[367012150,1750618015568,-1178.89,0.00041643,120]
[367012151,1750618015600,-897.76,0.00041643,120]
[367012152,1750618015633,-2710.86,0.00041643,120]
[367012153,1750618015666,-577.18,0.00041643,60]
[367012154,1750618015697,-5959.21,0.00041643,120]
[367012155,1750618015727,-908.68,0.00041643,120]
[367012156,1750618015758,-1462.23,0.00041643,120]
[367012157,1750618015788,-954.98,0.00041643,120]
[367012158,1750618015819,-11850.17,0.00041643,120]
[367012159,1750618015848,-2763.22,0.00041643,120]
[367012160,1750618015877,-1705.66,0.00041643,120]
[367012161,1750618015905,-779.86,0.00041643,120]
[367012162,1750618015933,-696.76,0.00041643,120]
[367012163,1750618015961,-961.18,0.00041643,120]
[367012164,1750618015990,-1581.01,0.00041643,120]
[367012165,1750618016018,-1646.99,0.00041643,120]
[367012166,1750618016047,-1550.89,0.00041643,120]
[367012167,1750618016076,-576.99,0.00041643,120]
[367012168,1750618016105,-2283.97,0.00041643,120]
[367012169,1750618016134,-14198.57,0.00041643,120]
[367012170,1750618016163,-4637.74,0.00041643,120]
[367012171,1750618016193,-970.19,0.00041643,120]
[367012172,1750618016222,-560.95,0.00041643,120]
[367012173,1750618016252,-1063.35,0.00041643,120]
[367012174,1750618016282,-2428.48,0.00041643,120]
[367012175,1750618016312,-768.07,0.00041643,120]
[367012176,1750618016342,-954.27,0.00041643,120]
[367012177,1750618016372,-703.02,0.00041643,120]
[367012178,1750618016403,-1532.64,0.00041643,120]
[367012179,1750618016433,-1105.74,0.00041643,120]
[367012180,1750618016466,-1991.16,0.00041643,120]
[367012181,1750618016496,-1075.23,0.00041643,120]
[367012182,1750618016528,-2560.05,0.00041643,120]
[367012183,1750618016562,-2054.37,0.00041643,120]
[367012184,1750618016593,-678.01,0.00041643,120]
[367012185,1750618016625,-2122.82,0.00041643,120]
[367012186,1750618016657,-975.97,0.00041643,120]
[367012187,1750618016689,-1045.31,0.00041643,120]
[367012188,1750618016722,-1509.09,0.00041643,120]
[367012189,1750618016755,-6290.35,0.00041643,120]
[367012190,1750618016786,-11222.7,0.00041643,120]
[367012191,1750618016817,-628.35,0.00041643,120]
[367012192,1750618016849,-3776.22,0.00041643,120]
[367012193,1750618016880,-2112.09,0.00041643,120]
[367012194,1750618016911,-494.77,0.00041643,120]
[367012195,1750618016941,-9208.59,0.00041643,120]
[367012196,1750618016971,-1622.88,0.00041643,120]
[367012197,1750618017003,-3313.22,0.00041643,120]
[367012198,1750618017035,-502.26,0.00041643,120]
[367012199,1750618017065,-2146.04,0.00041643,120]
[367012200,1750618017096,-3991.78,0.00041643,120]
[367012201,1750618017126,-18400.67,0.00041643,120]
[367012202,1750618017157,-983.29,0.00041643,120]
[367012203,1750618017187,-625.24,0.00041643,120]
[367012204,1750618017218,-1583.51,0.00041643,120]
[367012205,1750618017247,-780.49,0.00041643,120]
[367012206,1750618017277,-708.52,0.00041643,120]
[367012207,1750618017307,-2109.18,0.00041643,120]
[367012208,1750618017336,-3737.71,0.00041643,120]
[367012209,1750618017367,-2795.56,0.00041643,120]
[367012210,1750618017399,-1172.57,0.00041643,120]
[367012211,1750618017429,-878.26,0.00041643,120]
[367012212,1750618017461,-1246.48,0.00041643,120]
[367012213,1750618017492,-5298.5,0.00041643,120]
[367012214,1750618017522,-1983.23,0.00041643,120]
[367012215,1750618017553,-2093.47,0.00041643,120]
[367012216,1750618017583,-1397.05,0.00041643,120]
[367012217,1750618017614,-2126.41,0.00041643,120]
[367012218,1750618017646,-3812.58,0.00041643,120]
[367012219,1750618017677,-4625.78,0.00041643,120]
[367012220,1750618017709,-1629.35,0.00041643,120]
[367012221,1750618017741,-1861.84,0.00041643,120]
[367012222,1750618017772,-2150.01,0.00041643,120]
[367012223,1750618017803,-1197.91,0.00041643,120]
[367012224,1750618017970,-972.09,0.00041643,120]
[367012225,1750618018001,-1267.42,0.00041643,120]
[367012226,1750618018030,-713.45,0.00041643,120]
[367012227,1750618018061,-2321.28,0.00041643,120]
[367012228,1750618018089,-2677.28,0.00041643,120]
[367012229,1750618018119,-1144.44,0.00041643,120]
[367012230,1750618018151,-4146.65,0.00041643,120]
[367012231,1750618018180,-7966.06,0.00041643,120]
[367012232,1750618018209,-500.0,0.00041643,120]
[367012233,1750618018238,-1591.1,0.00041643,120]
[367012234,1750618018266,-968.44,0.00041643,120]
[367012235,1750618018295,-727.36,0.00041643,120]
[367012236,1750618018326,-4366.32,0.00041643,120]
[367012237,1750618018356,-1977.55,0.00041643,120]
[367012238,1750618018388,-1831.05,0.00041643,120]
[367012239,1750618018419,-545.7,0.00041643,120]
[367012240,1750618018450,-3473.08,0.00041643,120]
[367012241,1750618018485,-3132.68,0.00041643,120]
[367012242,1750618018516,-1027.25,0.00041643,120]
[367012243,1750618018548,-923.9,0.00041643,120]
[367012244,1750618018578,-5587.44,0.00041643,120]
[367012245,1750618018608,-7482.71,0.00041643,120]
[367012246,1750618018639,-4295.09,0.00041643,120]
[367012247,1750618018671,-1079.03,0.00041643,120]
[367012248,1750618018704,-1522.3,0.00041643,30]
[367012249,1750618018739,-824.41,0.00041643,120]
[367012250,1750618018772,-14168.63,0.00041643,120]
[367012251,1750618018804,-759.01,0.00041643,120]
[367012252,1750618018835,-1225.16,0.00041643,120]
[367012253,1750618018867,-26673.17,0.00041643,120]
[367012254,1750618018897,-1754.05,0.00041643,120]
[367012255,1750618018927,-1616.22,0.00041643,120]
[367012256,1750618018956,-828.03,0.00041643,120]
[367012257,1750618018987,-4976.16,0.00041643,120]
[367012258,1750618019018,-3208.85,0.00041643,120]
[367012259,1750618019047,-632.2,0.00041643,120]
[367012260,1750618019077,-5441.65,0.00041643,120]
[367012261,1750618019106,-9776.39,0.00041643,120]
[367012262,1750618019134,-564.6,0.00041643,120]
[367012263,1750618019164,-1229.51,0.00041643,120]
[367012264,1750618019195,-1314.71,0.00041643,120]
[367012265,1750618019226,-2826.41,0.00041643,120]
[367012266,1750618019256,-2420.06,0.00041643,120]
[367012267,1750618019285,-999.69,0.00041643,120]
[367012268,1750618019314,-832.19,0.00041643,120]
[367012269,1750618019343,-990.0,0.00041643,120]
[367012270,1750618019373,-614.72,0.00041643,120]
[367012271,1750618019402,-8662.88,0.00041643,120]
[367012272,1750618019433,-2051.6,0.00041643,120]
[367012273,1750618019464,-1684.67,0.00041643,120]
[367012274,1750618019492,-718.62,0.00041643,120]
[367012275,1750618019520,-1229.85,0.00041643,120]
[367012276,1750618019549,-1166.28,0.00041643,120]
[367012277,1750618019578,-1521.93,0.00041643,120]
[367012278,1750618019607,-1339.11,0.00041643,120]
[367012279,1750618019638,-3325.29,0.00041643,120]
[367012280,1750618019668,-2993.28,0.00041643,120]
[367012281,1750618019698,-2311.38,0.00041643,120]
[367012282,1750618019729,-3306.06,0.00041643,120]
[367012283,1750618019760,-3159.51,0.00041643,120]
[367012284,1750618019791,-891.11,0.00041643,120]
[367012285,1750618019822,-567.11,0.00041643,120]
[367012286,1750618019853,-4081.17,0.00041643,120]
[367012287,1750618019883,-1014.45,0.00041643,60]
[367012288,1750618019915,-2475.08,0.00041643,120]
[367012289,1750618019946,-1144.72,0.00041643,120]
[367012290,1750618019975,-1851.35,0.00041643,120]
[367012291,1750618020004,-19005.98,0.00041643,120]
[367012292,1750618020034,-2917.66,0.00041643,120]
[367012293,1750618020065,-490.0,0.00041643,120]
[367012294,1750618020095,-510.22,0.00041643,120]
[367012295,1750618020126,-1712.7,0.00041643,120]
[367012296,1750618020156,-2705.54,0.00041643,120]
[367012297,1750618020185,-3069.59,0.00041643,120]
[367012298,1750618020215,-4682.4,0.00041643,120]
[367012299,1750618020243,-778.0,0.00041643,120]
[367012300,1750618020272,-2706.12,0.00041643,120]
[367012301,1750618020302,-3867.17,0.00041643,120]
[367012302,1750618020332,-742.62,0.00041643,120]
[367012303,1750618020361,-829.85,0.00041643,120]
[367012304,1750618020390,-5823.66,0.00041643,120]
[367012305,1750618020419,-490.79,0.00041643,120]
[367012306,1750618020451,-717.26,0.00041643,120]
[367012307,1750618020490,-1565.38,0.00041643,120]
[367012308,1750618020521,-6163.92,0.00041643,120]
[367012309,1750618020554,-3771.65,0.00041643,120]
[367012310,1750618020586,-2514.48,0.00041643,120]
[367012311,1750618020618,-2422.18,0.00041643,120]
[367012312,1750618020649,-1720.94,0.00041643,120]
[367012313,1750618020680,-3851.86,0.00041643,120]
[367012314,1750618021031,-1669.85,0.00041643,120]
[367012315,1750618021063,-2199.48,0.00041643,120]
[367012316,1750618021093,-581.45,0.00041643,120]
[367012317,1750618021123,-1533.78,0.00041643,120]
[367012318,1750618021151,-2531.61,0.00041643,120]
[367012319,1750618021182,-899.19,0.00041643,120]
[367012320,1750618021213,-1236.73,0.00041643,120]
[367012321,1750618021243,-3110.13,0.00041643,120]
[367012322,1750618021275,-1676.95,0.00041643,120]
[367012323,1750618021306,-597.31,0.00041643,120]
[367012324,1750618021335,-742.73,0.00041643,120]
[367012325,1750618021364,-4224.82,0.00041643,120]
[367012326,1750618021393,-824.86,0.00041643,120]
[367012327,1750618021427,-951.93,0.00041643,120]
[367012328,1750618021460,-597.32,0.00041643,120]
[367012329,1750618021490,-3369.69,0.00041643,120]
[367012330,1750618021521,-1199.18,0.00041643,120]
[367012331,1750618021555,-8123.9,0.00041643,120]
[367012332,1750618021588,-5155.46,0.00041643,120]
[367012333,1750618021617,-806.39,0.00041643,120]
[367012334,1750618021647,-984.09,0.00041643,120]
[367012335,1750618021678,-855.43,0.00041643,120]
[367012336,1750618021710,-1415.25,0.00041643,120]
[367012337,1750618021741,-2967.79,0.00041643,120]
[367012338,1750618021773,-1050.32,0.00041643,120]
[367012339,1750618021805,-1517.34,0.00041643,120]
[367012340,1750618021837,-1950.75,0.00041643,120]
[367012341,1750618021869,-8263.59,0.00041643,120]
[367012342,1750618021901,-2191.68,0.00041643,120]
[367012343,1750618021933,-4043.96,0.00041643,120]
[367012344,1750618021965,-600.7,0.00041643,120]
[367012345,1750618021996,-1762.49,0.00041643,120]
[367012346,1750618022026,-1850.9,0.00041643,120]
[367012347,1750618022057,-2925.71,0.00041643,120]
[367012348,1750618022087,-754.5,0.00041643,120]
[367012349,1750618022115,-2846.09,0.00041643,120]
[367012350,1750618022143,-1698.23,0.00041643,120]
[367012351,1750618022174,-2653.18,0.00041643,120]
[367012352,1750618022203,-1492.62,0.00041643,120]
[367012353,1750618022233,-2511.06,0.00041643,120]
[367012354,1750618022264,-11566.07,0.00041643,120]
[367012355,1750618022294,-1103.85,0.00041643,120]
[367012356,1750618022326,-1235.29,0.00041643,120]
[367012357,1750618022355,-617.96,0.00041643,120]
[367012358,1750618022386,-1973.36,0.00041643,120]
[367012359,1750618022418,-6625.53,0.00041643,120]
[367012360,1750618022452,-974.14,0.00041643,120]
[367012361,1750618022489,-1476.17,0.00041643,120]
[367012362,1750618022523,-738.47,0.00041643,120]
[367012363,1750618022558,-3780.91,0.00041643,120]
[367012364,1750618022590,-604.97,0.00041643,120]
[367012365,1750618022622,-799.12,0.00041643,120]
[367012366,1750618022655,-4233.48,0.00041643,120]
[367012367,1750618022686,-943.0,0.00041644,120]
[367012368,1750618022717,-943.0,0.00041671,120]
[367012369,1750618022749,-1068.50722,0.00041688,30]
[367012370,1750618022780,-943.0,0.00041699,120]
[367012371,1750618022811,-945.02991734,0.00041726,120]
[367012372,1750618022840,-188.62,0.00041736,30]
[367012373,1750618022869,-170.97,0.00041736,30]
[367012374,1750618022899,-455.61,0.00041736,30]
[367012375,1750618022928,-150.0,0.00041736,30]
[367012376,1750618022956,-710.06,0.00041736,30]
[367012377,1750618022985,-163.6,0.00041736,30]
[367012378,1750618023014,-151.19,0.00041736,30]
[367012379,1750618023044,-170.97,0.00041736,30]
[367012380,1750618023077,-712.76,0.00041736,30]
[367012381,1750618023108,-163.6,0.00041736,30]
[367012382,1750618023139,-150.0,0.00041736,30]
[367012383,1750618023171,-455.61,0.00041736,30]
[367012384,1750618023202,-163.6,0.00041736,30]
[367012385,1750618023296,-150.0,0.00041736,30]
[367012386,1750618023329,-413.83,0.00041736,30]
[367012387,1750618023360,-170.97,0.00041736,30]
[367012388,1750618023392,-300.0,0.00041736,30]
[367012389,1750618023425,-163.6,0.00041736,30]
[367012390,1750618023462,-150.91,0.00041736,30]
[367012391,1750618023497,-341.94,0.00041736,30]
[367012392,1750618023531,-163.6,0.00041736,30]
[367012393,1750618023564,-163.6,0.00041736,30]
[367012394,1750618023597,-163.6,0.00041736,30]
[367012395,1750618023630,-232.53,0.00041736,30]
[367012396,1750618023662,-300.64,0.00041743,30]
[367012397,1750618023695,-170.97,0.00041744,30]
[367012398,1750618023729,-163.6,0.00041744,30]
[367012399,1750618023763,-163.6,0.00041744,30]
[367012400,1750618023795,-163.6,0.00041744,30]
[367012401,1750618023829,-163.6,0.00041744,30]
[367012402,1750618023862,-12500.0,0.0004175,120]
[367012403,1750618023896,-2000.0,0.0004178,46]
[367012404,1750618023930,-2378.06,0.000418,120]
[367012405,1750618023965,-1001200.154001,0.000418,120]
[367012406,1750618023997,-180.11198215,0.000418,120]
[367012407,1750618024030,-150.0,0.00041883,120]
[367012408,1750618024062,-1068.50722,0.00041888,30]
[367012409,1750618024094,-5000.0,0.000419,95]
[367012410,1750618024127,-16485.72,0.00041917,120]
[367012411,1750618024158,-1546.167924,0.00041917,120]
[367012412,1750618024189,-3709.237641,0.00041917,120]
[367012413,1750618024221,-176.630363,0.00041917,120]
[367012414,1750618024253,-562.97040484,0.00041917,120]
[367012415,1750618024285,-888.81276365,0.00041917,120]
[367012416,1750618024317,-280.63518328,0.00041917,120]
[367012417,1750618024348,-670.26283164,0.00041917,120]
[367012418,1750618024380,-8220.607738,0.00041917,120]
[367012419,1750618024412,-817.60716365,0.00041917,120]
[367012420,1750618024443,-699.55408065,0.00041917,120]
[367012421,1750618024477,-940.7953928,0.00041917,30]
[367012422,1750618024509,-512.13204414,0.00041917,120]
[367012423,1750618024542,-888.32863782,0.00041917,120]
[367012424,1750618024575,-1208.79360799,0.00041917,120]
[367012425,1750618024608,-516.52842518,0.00041917,120]
[367012426,1750618024641,-176.630364,0.00041917,120]
[367012427,1750618024673,-373.663988,0.00041917,120]
[367012428,1750618024705,-1057.5357003,0.00041917,120]
[367012429,1750618024737,-937.76291284,0.00041917,120]
[367012430,1750618024770,-554.50571485,0.00041917,120]
[367012431,1750618024802,-937.5873866,0.00041917,120]
[367012432,1750618024834,-583.05032543,0.00041917,120]
[367012433,1750618024866,-1252.10623042,0.00041917,120]
[367012434,1750618024899,-913.95150585,0.00041917,120]
[367012435,1750618024929,-573.89925154,0.00041917,120]
[367012436,1750618024959,-519.45283544,0.00041917,120]
[367012437,1750618024989,-696.80985248,0.00041917,120]
[367012438,1750618025019,-649.084188,0.00041917,120]
[367012439,1750618025048,-1947.36,0.00041917,120]
[367012440,1750618025078,-643.15252232,0.00041917,120]
[367012441,1750618025107,-150.574571,0.00041917,120]
[367012442,1750618025137,-674.52699027,0.00041917,120]
[367012443,1750618025166,-1732.59610635,0.00041917,120]
[367012444,1750618025196,-1301.79779985,0.00041917,120]
[367012445,1750618025226,-1703.76203322,0.00041917,120]
[367012446,1750618025255,-1138.46417767,0.00041917,120]
[367012447,1750618025285,-535.43852327,0.00041917,120]
[367012448,1750618025314,-1256.45894295,0.00041917,120]
[367012449,1750618025343,-657.11411309,0.00041917,120]
[367012450,1750618025373,-1702.80843869,0.00041917,120]
[367012451,1750618025403,-769.25316599,0.00041917,120]
[367012452,1750618025434,-896.81295494,0.00041917,120]
[367012453,1750618025467,-1108.95508351,0.00041917,120]
[367012454,1750618025499,-757.86009902,0.00041917,120]
[367012455,1750618025528,-654.87871325,0.00041917,120]
[367012456,1750618025561,-249.89724023,0.00041917,120]
[367012457,1750618025592,-1103.68869382,0.00041917,120]
[367012458,1750618025623,-2242.93,0.00041917,120]
[367012459,1750618025653,-1008.39037108,0.00041917,120]
[367012460,1750618025683,-1003.93992988,0.00041917,120]
[367012461,1750618025712,-252.21863089,0.00041917,120]
[367012462,1750618025742,-1116.45370967,0.00041917,120]
[367012463,1750618025773,-1809.06064099,0.00041917,120]
[367012464,1750618025802,-497.38573805,0.00041917,120]
[367012465,1750618025831,-832.86059816,0.00041917,120]
[367012466,1750618025860,-490.81524937,0.00041917,120]
[367012467,1750618025890,-828.4416811,0.00041917,120]
[367012468,1750618025917,-1251.33005566,0.00041917,120]
[367012469,1750618025947,-626.34394385,0.00041917,120]
[367012470,1750618025976,-744.10407341,0.00041917,120]
[367012471,1750618026005,-543.51,0.00041917,60]
[367012472,1750618026034,-2052.96095225,0.00041917,120]
[367012473,1750618026063,-861.94252635,0.00041917,120]
[367012474,1750618026091,-1263.16344155,0.00041917,120]
[367012475,1750618026119,-1298.55654544,0.00041917,120]
[367012476,1750618026147,-1514.61898684,0.00041917,120]
[367012477,1750618026176,-846.79402505,0.00041917,120]
[367012478,1750618026204,-1688.1796543,0.00041917,120]
[367012479,1750618026231,-620.47484452,0.00041917,120]
[367012480,1750618026261,-3009.27652276,0.00041917,120]
[367012481,1750618026288,-1325.89672384,0.00041917,120]
[367012482,1750618026318,-891.96009822,0.00041917,120]
[367012483,1750618026347,-386.76715172,0.00041917,120]
[367012484,1750618026376,-640.55830544,0.00041917,120]
[367012485,1750618026405,-1042.23838779,0.00041917,120]
[367012486,1750618026435,-927.20462222,0.00041917,120]
[367012487,1750618026464,-1774.49673682,0.00041917,120]
[367012488,1750618026495,-742.7229346,0.00041917,120]
[367012489,1750618026645,-805.86389315,0.00041917,120]
[367012490,1750618026686,-1708.09661749,0.00041917,120]
[367012491,1750618026717,-824.18600293,0.00041917,120]
[367012492,1750618026748,-2200.76752745,0.00041917,120]
[367012493,1750618026779,-1752.07415098,0.00041917,120]
[367012494,1750618026810,-879.13543673,0.00041917,120]
[367012495,1750618026840,-1377.82682573,0.00041917,120]
[367012496,1750618026871,-528.40143108,0.00041917,120]
[367012497,1750618026900,-1120.00123891,0.00041917,120]
[367012498,1750618026929,-1137.77427124,0.00041917,120]
[367012499,1750618026958,-2335.59,0.00041917,120]
[367012500,1750618026986,-1341.65393782,0.00041917,120]
[367012501,1750618027015,-1716.47172298,0.00041917,120]
[367012502,1750618027042,-895.32704577,0.00041917,120]
[367012503,1750618027070,-1169.91333153,0.00041917,120]
[367012504,1750618027098,-989.12338479,0.00041917,120]
[367012506,1750618027125,-683.01018173,0.00041917,120]